Workbook

Sheet Старшие сах.
A1: Примерное 2-х недельное меню для учащихся 12 лет и старше, больных сахарным диабетом
A3: № рец. | B3: Наименование блюд | F3: Выход | H3: Белки, г | I3: Жиры, г | J3: Углеводы, г | L3: Калорийность, ккал
A4: 1 неделя
A5: 1 ДЕНЬ
A6: ЗАВТРАК
A7: № 338 Дели 2015 г | B7: ФРУКТ (апельсин) | F7: 120 | H7: 0.480 | I7: 0.480 | J7: 11.760 | L7: 53
A8: № 14/2015 г Дели | B8: МАСЛО СЛИВОЧНОЕ (ПОРЦИЯМИ) | F8: 10 | H8: 7.300 | I8: 7.550 | J8: 0.080 | L8: 97
A9: №173/2015г,Дели | B9: КАША ВЯЗКАЯ МОЛОЧНАЯ ИЗ ГРЕЧНЕВОЙ КРУПЫ С МАСЛОМ (без сахара) | F9: 200/ 5 | H9: 8.937 | I9: 10.150 | J9: 68.110 | L9: 399
A10: №376 Дели 2015 | B10: ЧАЙ без сахара | F10: 200 | H10: 0.100 | I10: 0.250 | J10: 0.020 | L10: 3
B11: ХЛЕБ РЖАНОЙ | F11: 30 | H11: 1.500 | I11: 0.300 | J11: 13.500 | L11: 62
A12: Итого: | F12: 565 | H12: =H11+H10+H9+H8+H7 -> 18.317 | I12: =I11+I10+I9+I8+I7 -> 18.730 | J12: =J11+J10+J9+J8+J7 -> 93.470 | L12: =L11+L10+L9+L8+L7 -> 614
A13: ОБЕД
A14: № 338 Дели 2015 г | B14: ФРУКТ (яблоко зеленое) | F14: 120 | H14: 0.480 | I14: 0.480 | J14: 11.760 | L14: 53
A15: №45/2015г,Дели | B15: САЛАТ ИЗ БЕЛОКОЧАННОЙ КАПУСТЫ (капуста,морковь,без сахара,м/раст) | F15: 100 | H15: 1.551 | I15: 5.085 | J15: 15.175 | L15: 113
A16: №97/2015г,Дели | B16: СУП КАРТОФЕЛЬНЫЙ С БОБОВЫМИ С ФРИКАДЕЛЬКАМИ МЯСНЫМИ | F16: 250 /10 | H16: 4.900 | I16: 5.206 | J16: 25.045 | L16: 166
A17: №266/2015г,Дели | B17: БИФШТЕКС РУБЛЕНЫЙ | F17: 100г | H17: 15.283 | I17: 14.827 | J17: 9.865 | L17: 234
A18: № 541/2004 год | B18: РАГУ ОВОЩНОЕ (без томатной пасты) | F18: 180 | H18: 3.360 | I18: 4.850 | J18: 20.168 | L18: 138
A19: № 705 Сбор. рецеп. 2004 г | B19: НАПИТОК ИЗ ШИПОВНИКА без сахара | F19: 200 | H19: 0.210 | I19: 0.050 | J19: 15.020 | L19: 61
B20: ХЛЕБ РЖАНОЙ | F20: 50 | H20: 2.500 | I20: 0.500 | J20: 22.500 | L20: 105
A21: Итого: | F21: 1000 | H21: =SUM(H14:H20) -> 28.284 | I21: =SUM(I14:I20) -> 30.998 | J21: =SUM(J14:K20) -> 119.533 | L21: =SUM(L14:M20) -> 870
B22: Всего | F22: 1565 | H22: =H21+H12 -> 46.601 | I22: =I21+I12 -> 49.728 | J22: =J21+J12 -> 213.003 | L22: =L21+L12 -> 1484
A23: 2 ДЕНЬ
A24: ЗАВТАРК
A25: № 338 Дели 2015 г | B25: ФРУКТ (мандарин) | F25: 120 | H25: 0.480 | I25: 0.480 | J25: 11.760 | L25: 53
A26: 15/2015г Дели | B26: СЫР ПОРЦИЯМИ 10 г | F26: 10 | H26: 6.330 | I26: 6.266 | J26: 0.4 | L26: 83
A27: №173/2015г,Дели | B27: КАША ВЯЗКАЯ МОЛОЧНАЯ ИЗ ПШЁННОЙ КРУПЫ С МАСЛОМ (без сахара) | F27: 200/5 | H27: 9.437 | I27: 11.717 | J27: 44.092 | L27: 320
A28: №377/2015г,Дели | B28: ЧАЙ С ЛИМОНОМ без сахара | F28: 200 | H28: 0.320 | I28: 0.140 | J28: 20.440 | L28: 84
B29: ХЛЕБ РЖАНОЙ | F29: 30 | H29: 1.500 | I29: 0.300 | J29: 13.500 | L29: 62
A30: Итого: | F30: 565 | H30: =H29+H28+H27+H26+H25 -> 18.067 | I30: =I29+I28+I27+I26+I25 -> 18.903 | J30: =J29+J28+J27+J26+J25 -> 90.192 | L30: =L29+L28+L27+L26+L25 -> 602
A31: ОБЕД
A32: №52/2015г,Дели | B32: САЛАТ ИЗ СВЕКЛЫ ОТВАРНОЙ | F32: 100 | H32: 0.758 | I32: 1.088 | J32: 8.360 | L32: 46
A33: №99/2015г,Дели | B33: СУП ИЗ ОВОЩЕЙ С ФРИКАДЕЛЬКАМИ МЯСНЫМИ | F33: 250 /10 | H33: 3.275 | I33: 4.332 | J33: 25.045 | L33: 152
A34: №291/2015г,Дели | B34: ПЛОВ ИЗ ПТИЦЫ | F34: 50/180 | H34: 20.200 | I34: 22.195 | J34: 39.166 | L34: 441
A35: №348/2015г,Дели | B35: КОМПОТ ИЗ СУХОФРУКТОВ | F35: 200 | H35: 0.440 | I35: 0.020 | J35: 29.760 | L35: 121
B36: ХЛЕБ РЖАНОЙ | F36: 50 | H36: 2.500 | I36: 0.500 | J36: 22.500 | L36: 105
A37: Итого: | F37: 840 | H37: =H36+H35+H34+H33+H32 -> 27.173 | I37: =I36+I35+I34+I33+I32 -> 28.135 | J37: =J36+J35+J34+J33+J32 -> 124.831 | L37: =L36+L35+L34+L33+L32 -> 865
B38: Всего | F38: 1405 | H38: =H37+H30 -> 45.240 | I38: =I37+I30 -> 47.038 | J38: =J37+J30 -> 215.023 | L38: =L37+L30 -> 1467
A39: 3 ДЕНЬ
A40: ЗАВТАРК
A41: № 338 Дели 2015 г | B41: ФРУКТ (Банан) | F41: 120 | H41: 0.480 | I41: 0.480 | J41: 11.760 | L41: 53
A42: №3/2015г,Дели | B42: БУТЕРБРОД С СЫРОМ, МАСЛОМ | F42: 25/10/10 | H42: 6.940 | I42: 8.160 | J42: 11.330 | L42: 147
A43: №173/2015г,Дели | B43: КАША ВЯЗКАЯ МОЛОЧНАЯ ИЗ ГЕРКУЛЕСОВОЙ КРУПЫ С МАСЛОМ | F43: 200/5 | H43: 8.895 | I43: 9.061 | J43: 38.033 | L43: 269
A44: №378/2015г,Дели | B44: ЧАЙ С МОЛОКОМ без сахара | F44: 200 | H44: 0.210 | I44: 0.050 | J44: 15.020 | L44: 61
B45: ХЛЕБ РЖАНОЙ | F45: 30 | H45: 1.500 | I45: 0.300 | J45: 13.500 | L45: 62
A46: Итого: | F46: 600 | H46: =H45+H44+H43+H42+H41 -> 18.025 | I46: =I45+I44+I43+I42+I41 -> 18.051 | J46: =J45+J44+J43+J42+J41 -> 89.643 | L46: =L45+L44+L43+L42+L41 -> 592
A47: ОБЕД
A48: № 338 Дели 2015 г | B48: ФРУКТ( Груша) | F48: 120 | H48: 0.480 | I48: 0.480 | J48: 11.760 | L48: 53
A49: № 49 Сбор. рецеп. 2004 г | B49: САЛАТ ИЗ МОРКОВИ С ЯБЛОКАМИ | F49: 100 | H49: 0.990 | I49: 0.140 | J49: 8.780 | L49: 40
A50: №98/2015г,Дели | B50: СУП КРЕСТЬЯНСКИЙ С КРУПОЙ | F50: 250г | H50: 2.356 | I50: 2.485 | J50: 12.900 | L50: 83
A51: №250/2015г,Дели | B51: БЕФСТРОГАНОВ | F51: 50/50 | H51: 15.790 | I51: 18.175 | J51: 5.620 | L51: 249
A52: №136/2015г,Дели | B52: ОВОЩИ ПРИПУЩЕННЫЕ | F52: 180 | H52: 6.42 | I52: 6.240 | J52: 38.8 | L52: 237
A53: № 631 Сбор. рецеп. 2004 г | B53: КОМПОТ ИЗ ЯБЛОК | F53: 200 | H53: 0.440 | I53: 0.020 | J53: 29.760 | L53: 121
B54: ХЛЕБ РЖАНОЙ | F54: 50 | H54: 2.500 | I54: 0.500 | J54: 22.500 | L54: 105
A55: Итого: | F55: 1000 | H55: =H48+H49+H50+H51+H52+H53+H54 -> 28.976 | I55: =I48+I49+I50+I51+I52+I53+I54 -> 28.040 | J55: =J48+J49+J50+J51+J52+J53+J54 -> 130.120 | L55: =M54+L54+L53+L52+L51+L50+L49+L48 -> 888
A56: 4 ДЕНЬ
B58: Всего | F58: 1600 | H58: =H55+H46 -> 47.001 | I58: =I55+I46 -> 46.091 | J58: =J55+J46 -> 219.763 | L58: =L55+L46 -> 1480
A59: 4 ДЕНЬ
A60: ЗАВТАРК
A61: № 338 Дели 2015 г | B61: ФРУКТ( Апельсин) | F61: 120 | H61: 0.480 | I61: 0.480 | J61: 11.760 | L61: 53
A62: № 14/2015 г Дели | B62: МАСЛО СЛИВОЧНОЕ (ПОРЦИЯМИ) | F62: 10 | H62: 7.300 | I62: 7.550 | J62: 0.080 | L62: 97
A63: №173/2015г,Дели | B63: КАША ВЯЗКАЯ МОЛОЧНАЯ ИЗ ГРЕЧНЕВОЙ КРУПЫ С МАСЛОМ (без сахара) | F63: 200/ 5 | H63: 8.937 | I63: 10.150 | J63: 68.110 | L63: 399
A64: №376 Дели 2015 | B64: ЧАЙ без сахара | F64: 200 | H64: 0.100 | I64: 0.250 | J64: 0.020 | L64: 3
B65: ХЛЕБ РЖАНОЙ | F65: 30 | H65: 1.500 | I65: 0.300 | J65: 13.500 | L65: 62
A66: Итого: | F66: 565 | H66: =H65+H64+H63+H62+H61 -> 18.317 | I66: =I65+I64+I63+I62+I61 -> 18.73 | J66: =J65+J64+J63+J62+J61 -> 93.470 | L66: =L65+L64+L63+L62+L61 -> 614
A67: ОБЕД
A68: №45/2015г,Дели | B68: САЛАТ ИЗ БЕЛОКОЧАННОЙ КАПУСТЫ (капуста,морковь,без сахара,м/раст) | F68: 100 | H68: 1.551 | I68: 4.085 | J68: 15.175 | L68: 113
A69: №96/2015г,Дели | B69: РАССОЛЬНИК ЛЕНИНГРАДСКИЙ (картофель очищ.) | F69: 250 | H69: 2.856 | I69: 2.981 | J69: 21.156 | L69: 123
A70: №288/2015г,Дели | B70: ПТИЦА ОТВАРНАЯ | F70: 100 | H70: 15.990 | I70: 16.170 | J70: 7.320 | L70: 238
A71: №139/2015г,Дели | B71: КАПУСТА ТУШЕНАЯ | F71: 90 | H71: 2.142 | I71: 2.288 | J71: 14.400 | L71: 86
A72: № 216 Сбор.2004 | B72: КАРТОФЕЛЬ ТУШЁНЫЙ | F72: 90 | H72: 1.950 | I72: 1.830 | J72: 14.680 | L72: 83
A73: № 700 Сбор. рецеп. 2004 г | B73: НАПИТОК ИЗ ЗАМОРОЖЕННОЙ КЛЮКВЫ без сахара | F73: 200 | H73: 0.125 | I73: 0.050 | J73: 24.877 | L73: 100
B74: ХЛЕБ РЖАНОЙ | F74: 50 | H74: 2.500 | I74: 0.500 | J74: 22.500 | L74: 105
A75: Итого: | F75: 890 | H75: =H74+H73+H72+H71+H70+H69+H68 -> 27.114 | I75: =I74+I73+I72+I71+I70+I69+I68 -> 27.904 | J75: =SUM(J68:K74) -> 120.108 | L75: =L74+L73+L72+L71+L70+L69+L68 -> 848
B76: Всего: | F76: 1455 | H76: =H75+H66 -> 45.431 | I76: =I75+I66 -> 46.634 | J76: =J75+J66 -> 213.578 | L76: =L75+L66 -> 1462
A77: 5 ДЕНЬ
A78: ЗАВТАРК
A79: № 338 Дели 2015 г | B79: ФРУКТ( Мандарин) | F79: 120 | H79: 0.480 | I79: 0.480 | J79: 11.760 | L79: 53
A80: № 42 /1983 г № 15/2015г Дели | B80: СЫР ПОРЦИЯМИ | F80: 10 | H80: 6.330 | I80: 6.266 | J80: 0.4 | L80: 83
A81: №173/2015г,Дели | B81: КАША ВЯЗКАЯ МОЛОЧНАЯ ИЗ ПШЁННОЙ КРУПЫ С МАСЛОМ (без сахара) | F81: 200/5 | H81: 9.437 | I81: 11.717 | J81: 44.092 | L81: 320
A82: №377/2015г,Дели | B82: ЧАЙ С ЛИМОНОМ без сахара | F82: 200 | H82: 0.320 | I82: 0.140 | J82: 20.440 | L82: 84
B83: ХЛЕБ РЖАНОЙ | F83: 30 | H83: 1.500 | I83: 0.300 | J83: 13.500 | L83: 62
A84: Итого: | F84: 565 | H84: =H83+H82+H81+H80+H79 -> 18.067 | I84: =I83+I82+I81+I80+I79 -> 18.903 | J84: =J83+J82+J81+J80+J79 -> 90.192 | L84: =L83+L82+L81+L80+L79 -> 602
A85: ОБЕД
A86: № 338 Дели 2015 г | B86: ФРУКТ(Яблоко зеленое) | F86: 120 | H86: 0.480 | I86: 0.480 | J86: 11.760 | L86: 53
A87: № 62 Дели 2015 г | B87: САЛАТ ИЗ МОРКОВИ | F87: 100 | H87: 1.430 | I87: 5.050 | J87: 15.170 | L87: 112
A88: №88/2015г,Дели | B88: ЩИ ИЗ СВЕЖЕЙ КАПУСТЫ С КАРТОФЕЛЕМ СО СМЕТАНОЙ | F88: 250/5 | H88: 2.430 | I88: 3.680 | J88: 10.400 | L88: 84
A89: № 464 Сбор. рецеп. 2004 г | B89: ТЕФТЕЛИ ИЗ ГОВЯДИНЫ (паровые, без пшенич.муки, хлеба, сухарей) | F89: 100 | H89: 12.270 | I89: 12.280 | J89: 1.760 | L89: 167
A90: №302/2015г,Дели | B90: КАША ГРЕЧНЕВАЯ РАССЫПЧАТАЯ | F90: 180 | H90: 7.940 | I90: 6.470 | J90: 48.050 | L90: 282
A91: № 705 Сбор. рецеп. 2004 г | B91: НАПИТОК ИЗ ШИПОВНИКА без сахара | F91: 200 | H91: 0.210 | I91: 0.050 | J91: 15.020 | L91: 61
B92: ХЛЕБ РЖАНОЙ | F92: 50 | H92: 2.500 | I92: 0.500 | J92: 22.500 | L92: 105
A93: Итого: | F93: 1005 | H93: =H86+H87+H88+H89+H90+H91+H92 -> 27.260 | I93: =I86+I87+I88+I89+I90+I91+I92 -> 28.510 | J93: =J86+J87+J88+J89+J90+J91+J92 -> 124.660 | L93: =L92+L91+L90+L89+L88+L87+L86 -> 864
B94: Всего | F94: 1570 | H94: =H93+H84 -> 45.327 | I94: =I93+I84 -> 47.413 | J94: =J93+J84 -> 214.852 | L94: =L93+L84 -> 1466
A95: 6 ДЕНЬ
A96: ЗАВТАРК
A97: № 338 Дели 2015 г | B97: ФРУКТ(Груша) | F97: 120 | H97: 0.480 | I97: 0.480 | J97: 11.760 | L97: 53
A98: №3/2015г,Дели | B98: БУТЕРБРОД С СЫРОМ, МАСЛОМ (хлеб сельский) | F98: 25/10/10 | H98: 6.940 | I98: 8.160 | J98: 11.330 | L98: 147
A99: №173/2015г,Дели | B99: КАША ВЯЗКАЯ МОЛОЧНАЯ ИЗ ГЕРКУЛЕСОВОЙ КРУПЫ С МАСЛОМ | F99: 200/5 | H99: 8.895 | I99: 9.061 | J99: 38.033 | L99: 269
A100: №378/2015г,Дели | B100: ЧАЙ С МОЛОКОМ без сахара | F100: 200/15 | H100: 0.210 | I100: 0.050 | J100: 15.020 | L100: 61
B101: ХЛЕБ РЖАНОЙ | F101: 30 | H101: 1.500 | I101: 0.300 | J101: 13.500 | L101: 62
A102: Итого: | F102: 615 | H102: =SUM(H97:H101) -> 18.025 | I102: =I100+I101+I99+I98+I97 -> 18.051 | J102: =J101+J100+J99+J98+J97 -> 89.643 | L102: =M101+L101+L100+L99+L98+L97 -> 592
A103: ОБЕД
A104: №47/2015г,Дели | B104: САЛАТ ИЗ КВАШЕНОЙ КАПУСТЫ | F104: 100 | H104: 1.550 | I104: 5.080 | J104: 15.175 | L104: 113
A105: №99/2015г,Дели | B105: СУП ИЗ ОВОЩЕЙ С ФРИКАДЕЛЬКАМИ МЯСНЫМИ | F105: 250 /10 | H105: 3.275 | I105: 4.332 | J105: 25.045 | L105: 152
A106: № 268/2015г,Дели | B106: КОТЛЕТЫ ИЗ ГОВЯДИНЫ (без пшенич.муки,хлеба,сухарей) | F106: 100г | H106: 16.478 | I106: 14.950 | J106: 7.340 | L106: 225
A107: № 510/2015г,Дели | B107: КАША ПЕРЛОВАЯ ВЯЗКАЯ С МАСЛОМ | F107: 180/5 | H107: 3.700 | I107: 3.340 | J107: 26.020 | L107: 149
A108: №348/2015г,Дели | B108: КОМПОТИЗ УРЮКА | F108: 200 | H108: 0.440 | I108: 0.020 | J108: 29.760 | L108: 121
B109: ХЛЕБ РЖАНОЙ | F109: 50 | H109: 2.500 | I109: 0.500 | J109: 22.500 | L109: 105
A110: Итого: | F110: 890 | H110: =H109+H108+H107+H106+H105+H104 -> 27.943 | I110: =I109+I108+I107+I106+I105+I104 -> 28.222 | J110: =J109+J108+J107+J106+J105+J104 -> 125.840 | L110: =L109+L108+L107+L106+L105+L104 -> 865
B111: Всего | F111: =F102+F110 -> 1505 | H111: =H110+H102 -> 45.968 | I111: =I110+I102 -> 46.273 | J111: =J110+J102 -> 215.483 | L111: =L110+L102 -> 1457
A112: 2 неделя
A113: 1 ДЕНЬ
A114: ЗАВТРАК
A115: № 338 Дели 2015 г | B115: ФРУКТ(Банан) | F115: 120 | H115: 0.480 | I115: 0.480 | J115: 11.760 | L115: 53
A116: № 14/2015 г Дели | B116: МАСЛО СЛИВОЧНОЕ (ПОРЦИЯМИ) | F116: 10 | H116: 7.300 | I116: 7.550 | J116: 0.080 | L116: 97
A117: №173/2015г,Дели | B117: КАША ВЯЗКАЯ МОЛОЧНАЯ ИЗ ГРЕЧНЕВОЙ КРУПЫ С МАСЛОМ (без сахара) | F117: 200/ 5 | H117: 8.937 | I117: 10.150 | J117: 68.110 | L117: 399
A118: №376 Дели 2015 | B118: ЧАЙ без сахара | F118: 200 | H118: 0.100 | I118: 0.250 | J118: 0.020 | L118: 3
B119: ХЛЕБ РЖАНОЙ | F119: 30 | H119: 1.500 | I119: 0.300 | J119: 13.500 | L119: 62
A120: Итого: | G120: 565 | H120: =H119+H118+H117+H116+H115 -> 18.317 | I120: =I119+I118+I117+I116+I115 -> 18.730 | J120: =J119+J118+J117+J116+J115 -> 93.470 | L120: =L119+L118+L117+L116+L115 -> 614
A121: ОБЕД
A122: № 338 Дели 2015 г | B122: ФРУКТ(Апельсин) | F122: 120 | H122: 0.480 | I122: 0.480 | J122: 11.760 | L122: 53
A123: №45/2015г,Дели | B123: САЛАТ ИЗ БЕЛОКОЧАННОЙ КАПУСТЫ (капуста,морковь,без сахара,м/раст) | F123: 100 | H123: 1.551 | I123: 5.085 | J123: 15.175 | L123: 113
A124: №96/2015г,Дели | B124: РАССОЛЬНИК ЛЕНИНГРАДСКИЙ (картофель очищ.) | F124: 250 | H124: 2.856 | I124: 2.981 | J124: 21.156 | L124: 123
A125: № 464 Сбор. рецеп. 2004 г | B125: ТЕФТЕЛИ ИЗ ГОВЯДИНЫ (паровые, без пшенич.муки, хлеба, сухарей) | F125: 100 | H125: 12.270 | I125: 12.280 | J125: 1.760 | L125: 167
A126: №136/2015г,Дели | B126: ОВОЩИ ПРИПУЩЕННЫЕ | F126: 180 | H126: 6.42 | I126: 6.240 | J126: 38.8 | L126: 237
A127: № 631 Сбор. рецеп. 2004 г | B127: КОМПОТ ИЗ СУХОФРУКТОВ | F127: 200 | H127: 0.210 | I127: 0.050 | J127: 15.020 | L127: 61
B128: ХЛЕБ РЖАНОЙ | F128: 50 | H128: 2.500 | I128: 0.500 | J128: 22.500 | L128: 105
A129: Итого: | F129: 1000 | H129: =H128+H127+H126+H125+H124+H123+H122 -> 26.287 | I129: =I122+I123+I124+I125+I126+I127+I128 -> 27.616 | J129: =J122+J123+J124+J125+J126+J127+J128 -> 126.17 | L129: =L128+L127+L126+L125+L124+L123+L122 -> 859
B130: Всего | F130: 1565 | H130: =H129+H120 -> 44.604 | I130: =I129+I120 -> 46.346 | J130: =J129+J120 -> 219.64 | L130: =M128+L129+L120 -> 1473
A131: 2 ДЕНЬ
A132: ЗАВТАРК
A133: № 338 Дели 2015 г | B133: ФРУКТ(Мандарин) | F133: 120 | H133: 0.480 | I133: 0.480 | J133: 11.760 | L133: 53
A134: 15/2015г Дели | B134: СЫР ПОРЦИЯМИ | F134: 10 | H134: 6.330 | I134: 6.266 | J134: 0.4 | L134: 83
A135: №173/2015г,Дели | B135: КАША ВЯЗКАЯ МОЛОЧНАЯ ИЗ ПШЁННОЙ КРУПЫ С МАСЛОМ (без сахара) | F135: 200/5 | H135: 9.437 | I135: 11.717 | J135: 44.092 | L135: 320
A136: №377/2015г,Дели | B136: ЧАЙ С ЛИМОНОМ без сахара | F136: 200 | H136: 0.320 | I136: 0.140 | J136: 24.440 | L136: 100
B137: ХЛЕБ РЖАНОЙ | F137: 30 | H137: 1.500 | I137: 0.300 | J137: 13.500 | L137: 62
A138: Итого: | F138: 565 | H138: =H137+H136+H135+H134+H133 -> 18.067 | I138: =I137+I136+I135+I134+I133 -> 18.903 | J138: =J137+J136+J135+J134+J133 -> 94.192 | L138: =L137+L136+L135+L134+L133 -> 618
A139: ОБЕД
A140: №52/2015г,Дели | B140: САЛАТ ИЗ СВЕКЛЫ ОТВАРНОЙ | F140: 100 | H140: 0.758 | I140: 1.088 | J140: 8.360 | L140: 46
A141: №97/2015г,Дели | B141: СУП КАРТОФЕЛЬНЫЙ С ФРИКАДЕЛЬКАМИ МЯСНЫМИ | F141: 250/ 10 | H141: 4.900 | I141: 5.206 | J141: 25.048 | L141: 166
A142: №294/2015г,Дели | B142: КОТЛЕТЫ РУБЛЕННЫЕ ИЗ ПТИЦЫ (без хлеба, сухарей) | F142: 100 | H142: 13.500 | I142: 17.155 | J142: 9.855 | L142: 248
A143: №302/2015г,Дели | B143: КАША ГРЕЧНЕВАЯ РАССЫПЧАТАЯ | F143: 180 | H143: 7.940 | I143: 6.470 | J143: 48.050 | L143: 282
A144: № 700 Сбор. рецеп. 2004 г | B144: НАПИТОК ИЗ ЗАМОРОЖЕННОЙ КЛЮКВЫ без сахара | F144: 200 | H144: 0.125 | I144: 0.050 | J144: 17.877 | L144: 100
B145: ХЛЕБ РЖАНОЙ | F145: 50 | H145: 2.500 | I145: 0.500 | J145: 22.500 | L145: 105
A146: Итого: | F146: 890 | H146: =H145+H144+H143+H142+H141+H140 -> 29.723 | I146: =I145+I144+I143+I142+I141+I140 -> 30.469 | J146: =J145+J144+J143+J142+J141+J140 -> 131.690 | L146: =M145+L145+L144+L143+L142+L141+M140+L140 -> 947
B147: Всего: | F147: 1455 | H147: =H146+H138 -> 47.790 | I147: =I146+I138 -> 49.372 | J147: =J146+J138 -> 225.882 | L147: =L146+L138 -> 1565
A148: 3 ДЕНЬ
A149: ЗАВТАРК
A150: № 338 Дели 2015 г | B150: ФРУКТ(Яблоко) | F150: 120 | H150: 0.480 | I150: 0.480 | J150: 11.760 | L150: 53
A151: №3/2015г,Дели | B151: БУТЕРБРОД С СЫРОМ, МАСЛОМ (хлеб ржаной) | F151: 25/10/10 | H151: 6.940 | I151: 8.160 | J151: 11.330 | L151: 147
A152: №173/2015г,Дели | B152: КАША ВЯЗКАЯ МОЛОЧНАЯ ИЗ ГЕРКУЛЕСОВОЙ КРУПЫ С МАСЛОМ | F152: 200/5 | H152: 8.895 | I152: 9.061 | J152: 38.033 | L152: 269
A153: №378/2015г,Дели | B153: ЧАЙ С МОЛОКОМ без сахара | F153: 200 | H153: 0.440 | I153: 0.020 | J153: 19.060 | L153: 78
B154: ХЛЕБ РЖАНОЙ | F154: 30 | H154: 1.500 | I154: 0.300 | J154: 13.500 | L154: 62
A155: Итого: | F155: 600 | H155: =H154+H153+H152+H151+H150 -> 18.255 | I155: =I154+I153+I152+I151+I150 -> 18.021 | J155: =J154+J153+J152+J151+J150 -> 93.683 | L155: =L154+L153+L152+L151+L150 -> 609
A156: ОБЕД
A157: № 338 Дели 2015 г | B157: ФРУКТ (Груша) | F157: 120 | H157: 0.480 | I157: 0.480 | J157: 26.740 | L157: 113
A158: № 49 Сбор. рецеп. 2004 г | B158: САЛАТ ИЗ МОРКОВИ С ЯБЛОКАМИ (без сахара) | F158: 100 | H158: 0.990 | I158: 0.140 | J158: 8.780 | L158: 40
A159: №98/2015г,Дели | B159: СУП КРЕСТЬЯНСКИЙ С КРУПОЙ | F159: 250г | H159: 2.356 | I159: 2.485 | J159: 12.900 | L159: 83
A160: № 371 Сбор.2004г | B160: ГОРБУША ПРИПУЩЕННАЯ (ФИЛЕ) | F160: 100 | H160: 17.070 | I160: 18.650 | J160: 2.027 | L160: 244
A161: №139/2015г,Дели | B161: КАПУСТА ТУШЕНАЯ | F161: 90 | H161: 2.142 | I161: 2.288 | J161: 14.400 | L161: 86
A162: № 216 Сбор.2004 | B162: КАРТОФЕЛЬ ТУШЁНЫЙ | F162: 90 | H162: 1.950 | I162: 1.830 | J162: 14.680 | L162: 83
A163: № 705 Сбор. рецеп. 2004 г | B163: НАПИТОК ИЗ ШИПОВНИКА без сахара | F163: 200 | H163: 0.210 | I163: 0.050 | J163: 15.020 | L163: 61
B164: ХЛЕБ РЖАНОЙ | F164: 50 | H164: 2.500 | I164: 0.500 | J164: 22.500 | L164: 105
A165: Итого: | F165: 1000 | H165: =H157+H158+H159+H160+H161+H162+H163+H164 -> 27.698 | I165: =I157+I158+I159+I160+I161+I162+I163+I164 -> 26.423 | J165: =J157+J158+J159+J160+J161+J162+J163+J164 -> 117.047 | L165: =L157+L158+L159+L160+L161+L162+L163+L164 -> 815
B166: Всего | F166: 1600 | H166: =H165+H155 -> 45.953 | I166: =I165+I155 -> 44.444 | J166: =J165+J155 -> 210.730 | L166: =L165+L155 -> 1424
A167: 4 ДЕНЬ
A168: ЗАВТАРК
A169: № 338 Дели 2015 г | B169: ФРУКТ(Апельсин) | F169: 120 | H169: 0.480 | I169: 0.480 | J169: 11.760 | L169: 53
A170: № 14/2015 г Дели | B170: МАСЛО СЛИВОЧНОЕ (ПОРЦИЯМИ) | F170: 10 | H170: 7.300 | I170: 7.550 | J170: 0.080 | L170: 97
A171: №173/2015г,Дели | B171: КАША ВЯЗКАЯ МОЛОЧНАЯ ИЗ ГРЕЧНЕВОЙ КРУПЫ С МАСЛОМ (без сахара) | F171: 200/ 5 | H171: 8.937 | I171: 10.150 | J171: 68.110 | L171: 400
A172: №376/2015г,Дели | B172: ЧАЙ без сахара | F172: 200 | H172: 0.100 | I172: 0.250 | J172: 0.020 | L172: 3
B173: ХЛЕБ РЖАНОЙ | F173: 30 | H173: 1.500 | I173: 0.300 | J173: 13.500 | L173: 62
A174: Итого: | F174: 565 | H174: =H173+H172+H171+H170+H169 -> 18.317 | I174: =I173+I172+I171+I170+I169 -> 18.730 | J174: =J173+J172+J171+J170+J169 -> 93.470 | L174: =L173+L172+L171+L170+L169 -> 615
A175: ОБЕД
A176: №45/2015г,Дели | B176: САЛАТ ИЗ БЕЛОКОЧАННОЙ КАПУСТЫ (капуста,морковь,без сахара,м/раст) | F176: 100 | H176: 1.551 | I176: 4.085 | J176: 15.175 | L176: 103
A177: №99/2015г,Дели | B177: СУП ИЗ ОВОЩЕЙ С ФРИКАДЕЛЬКАМИ МЯСНЫМИ | F177: 250 /10 | H177: 3.275 | I177: 4.332 | J177: 25.045 | L177: 152
A178: Рец.№265 Сбор.2015г Дели | B178: ПЛОВ ИЗ ГОВЯДИНЫ | F178: 50/180 | H178: 22.105 | I178: 20.640 | J178: 24.110 | L178: 399
A179: №348/2015г,Дели | B179: КОМПОТ ИЗ УРЮКА | F179: 200 | H179: 0.440 | I179: 0.020 | J179: 31.760 | L179: 129
B180: ХЛЕБ РЖАНОЙ | F180: 50 | H180: 2.200 | I180: 0.500 | J180: 22.500 | L180: 105
A181: Итого: | F181: 800 | H181: =H180+H179+H178+H177+H176 -> 29.6 | I181: =I180+I179+I178+I177+I176 -> 29.577 | J181: =J180+J179+J178+J177+J176 -> 118.590 | L181: =L180+L179+L178+L177+L176 -> 888
F182: 1365 | H182: =H181+H174 -> 47.9 | I182: =I181+I174 -> 48.307 | J182: =J181+J174 -> 212.060 | L182: =L181+L174 -> 1503
A183: 5 ДЕНЬ
A184: ЗАВТРАК
A185: № 338 Дели 2015 г | B185: ФРУКТ (Мандарин) | F185: 120 | H185: 0.480 | I185: 0.480 | J185: 11.760 | L185: 53
A186: 15/2015г Дели | B186: СЫР ПОРЦИЯМИ | F186: 10 | H186: 6.330 | I186: 6.266 | J186: 0.4 | L186: 83
A187: №173/2015г,Дели | B187: КАША ВЯЗКАЯ МОЛОЧНАЯ ИЗ ПШЁННОЙ КРУПЫ С МАСЛОМ (без сахара) | F187: 200/5 | H187: 9.437 | I187: 11.717 | J187: 44.092 | L187: 320
A188: №377/2015г,Дели | B188: ЧАЙ С ЛИМОНОМ без сахара | F188: 200 | H188: 0.320 | I188: 0.140 | J188: 20.440 | L188: 84
B189: ХЛЕБ РЖАНОЙ | F189: 30 | H189: 1.500 | I189: 0.300 | J189: 13.500 | L189: 62
A190: Итого: | F190: 565 | H190: =H189+H188+H187+H186+H185 -> 18.067 | I190: =I189+I188+I187+I186+I185 -> 18.903 | J190: =J189+J188+J187+J186+J185 -> 90.192 | L190: =L189+L188+L187+L186+L185 -> 602
A191: ОБЕД
A192: № 338 Дели 2015 г | B192: ФРУКТ (Яблоко красное) | F192: 120 | H192: 0.480 | I192: 0.480 | J192: 11.760 | L192: 53
A193: № 62 Дели 2015 г | B193: САЛАТ ИЗ МОРКОВИ (без сахара) | F193: 100 | H193: 1.430 | I193: 5.050 | J193: 15.170 | L193: 112
A194: №88/2015г,Дели | B194: ЩИ ИЗ СВЕЖЕЙ КАПУСТЫ С КАРТОФЕЛЕМ СО СМЕТАНОЙ | F194: 250/5 | H194: 2.430 | I194: 3.680 | J194: 10.400 | L194: 84
A195: №288/2015г,Дели | B195: ПТИЦА ОТВАРНАЯ | F195: 100 | H195: 15.990 | I195: 16.170 | J195: 7.320 | L195: 238
A196: № 510/2015г,Дели | B196: КАША ПЕРЛОВАЯ ВЯЗКАЯ С МАСЛОМ | F196: 180/5 | H196: 3.700 | I196: 3.340 | J196: 26.020 | L196: 149
A197: № 631 Сбор. рецеп. 2004 г | B197: КОМПОТ ИЗ СУХОФРУКТОВ | F197: 200 | H197: 0.210 | I197: 0.050 | J197: 15.020 | L197: 61
B198: ХЛЕБ РЖАНОЙ | F198: 50 | H198: 2.500 | I198: 0.500 | J198: 22.500 | L198: 105
A199: Итого: | F199: 1005 | H199: =SUM(H192:H198) -> 26.740 | I199: =SUM(I192:I198) -> 29.270 | J199: =SUM(J192:K198) -> 108.190 | L199: =M198+L198+L197+L196+L195+L194+L193+L192 -> 802
B200: Всего: | F200: 1570 | H200: =H190+H199 -> 44.807 | I200: =I199+I190 -> 48.173 | J200: =J190+J199 -> 198.382 | L200: =L199+L190 -> 1404
A201: 6 ДЕНЬ
A202: ЗАВТРАК
... 15 more rows

Sheet целиякия старш
B1: Примерное 2-х недельное меню для учащихся 12 лет и старше, больных целиакией
B3: № рец. | C3: Наименование блюд | G3: Выход | I3: Белки, г | K3: Жиры, г | L3: Углеводы, г | O3: Калорийность, ккал
B4: 1 неделя
B5: 1 ДЕНЬ
B6: ЗАВТРАК
B7: №340 сбор.2004/210 Дели 2015 | C7: ОМЛЕТ НАТУРАЛЬНЫЙ | G7: 80 | I7: 7.610 | K7: 8.840 | L7: 5.744 | O7: 133
B8: №173/2015г,Дели | C8: КАША ВЯЗКАЯ МОЛОЧНАЯ ИЗ ПШЁННОЙ КРУПЫ С МАСЛОМ | G8: 250/5 | I8: 9.437 | K8: 11.717 | L8: 44.092 | O8: 320
B9: №376 Дели 2015 | C9: ЧАЙ С САХАРОМ | G9: 200/15/7 | I9: 0.273 | K9: 0.057 | L9: 15.230 | O9: 63
C10: ХЛЕБЦЫ РИСОВЫЕ | G10: 25 | I10: 1.5 | K10: 0.25 | L10: 17.25 | O10: 77
B11: Итого: | G11: 582 | I11: =I10+I9+I8+I7 -> 18.820 | K11: =K10+K9+K8+K7 -> 20.864 | L11: =L10+L9+L8+L7 -> 82.316 | O11: =O10+O9+O8+O7 -> 593
B12: ОБЕД
B13: № 338/2015 г Дели | C13: ФРУКТ (Яблоко) | G13: 120 | I13: 0.480 | K13: 0.480 | L13: 11.760 | O13: 53
B14: №47/2015г,Дели | C14: САЛАТ ИЗ КВАШЕННОЙ КАПУСТЫ | G14: 100 | I14: 1.551 | K14: 5.080 | L14: 15.175 | O14: 113
B15: № 111 сб.рецептур 2004 г. | C15: БОРЩ СИБИРСКИЙ (без томатной пасты) | G15: 250 | I15: 3.730 | K15: 2.350 | L15: 31.480 | O15: 162
B16: №266/2015г,Дели | C16: БИФШТЕКС РУБЛЕНЫЙ | G16: 100г | I16: 15.283 | K16: 14.827 | L16: 9.865 | O16: 234
B17: №302/2015г,Дели | C17: КАША ГРЕЧНЕВАЯ РАССЫПЧАТАЯ | G17: 180 | I17: 7.940 | K17: 6.470 | L17: 53.050 | O17: 302
B18: № 705 Сбор. рецеп. 2004 г | C18: НАПИТОК ИЗ ШИПОВНИКА | G18: 200 | I18: 0.210 | K18: 0.050 | L18: 15.020 | O18: 61
C19: ХЛЕБЦЫ ГРЕЧНЕВЫЕ 40 г | G19: 40 | I19: 1.92 | K19: 1.96 | L19: 8.8 | O19: 59
B20: Итого: | G20: 990 | I20: =SUM(I13:J19) -> 31.114 | K20: =SUM(K13:K19) -> 31.217 | L20: 140.700 | O20: =SUM(O13:P19) -> 984
C21: ВСЕГО | G21: 1572 | I21: =I11+I20 -> 49.934 | K21: =K20+K11 -> 52.081 | L21: =L20+L11 -> 223.016 | O21: =O11+O20 -> 1577
B22: 2 ДЕНЬ
B23: ЗАВТРАК
B24: № 338 Дели 2015 г | C24: ФРУКТ (Мандарин) | G24: 90 | I24: 0.480 | K24: 0.480 | L24: 4.760 | O24: 56
B25: №14/2015г Дели | C25: Масло Сливочное (Порциями) | G25: 10 | I25: 7.30 | K25: 7.55 | L25: 0.8 | O25: 100
B26: №173/2015г,Дели | C26: КАША ВЯЗКАЯ МОЛОЧНАЯ ИЗ КУКУРУЗНОЙ КРУПЫ (с маслом) | G26: 250/ 5 | I26: 8.585 | K26: 9.537 | L26: 56.178 | O26: 345
B27: №377/2015г,Дели | C27: ЧАЙ С ЛИМОНОМ | G27: 200/ 15 | I27: 0.320 | K27: 0.140 | L27: 20.440 | O27: 84
C28: ХЛЕБЦЫ РИСОВЫЕ | G28: 25 | I28: 1.5 | K28: 0.25 | L28: 17.25 | O28: 77
B29: Итого: | G29: 595 | I29: =I28+I27+I26+I25+I24 -> 18.185 | K29: =K28+K27+K26+K25+K24 -> 17.96 | L29: =L28+L27+L26+L25+L24 -> 99.428 | O29: =O27+O28+O26+O25+O24 -> 662
B30: ОБЕД
B31: №52/2015г,Дели | C31: САЛАТ ИЗ СВЕКЛЫ ОТВАРНОЙ (с маслом) | G31: 100 | I31: 0.758 | K31: 1.088 | L31: 8.360 | O31: 46
B32: №99/2015г,Дели | C32: СУП ОВОЩНОЙ С МЯСНЫМИ ФРИКАДЕЛЬКАМИ | G32: 250 /10 | I32: 3.275 | K32: 4.332 | L32: 25.045 | O32: 152
B33: №291/2015г,Дели | C33: ПЛОВ ИЗ ПТИЦЫ (без томатной пасты) | G33: 50/180 | I33: 20.200 | K33: 22.195 | L33: 39.166 | O33: 442
B34: №348/2015г,Дели | C34: КОМПОТ ИЗ СУХОФРУКТОВ | G34: 200 | I34: 0.440 | K34: 0.020 | L34: 29.760 | O34: 121
C35: ХЛЕБЦЫ ГРЕЧНЕВЫЕ | G35: 40 | I35: 1.92 | K35: 1.96 | L35: 8.8 | O35: 59
B36: Итого: | G36: 830 | I36: =I35+I34+I33+I32+I31 -> 26.593 | K36: =K35+K34+K33+K32+K31 -> 29.595 | L36: =L35+L34+L33+L32+L31 -> 111.131 | O36: =O35+O34+O33+O32+O31 -> 820
C37: ВСЕГО | G37: 1425 | I37: =I36+I29 -> 44.778 | K37: =K36+K29 -> 47.552 | L37: =L36+L29 -> 210.559 | O37: =O36+O29 -> 1482
B38: 3 ДЕНЬ
B39: ЗАВТРАК
B40: № 338/2015 г Дели | C40: ФРУКТ (Банан) | G40: 120 | I40: 0.480 | K40: 0.480 | L40: 11.760 | O40: 53
B41: №29/2015г,Дели | C41: Яицо отварное | G41: 1 шт | I41: 6.255 | K41: 5.918 | L41: 0.28 | O41: 79
B42: №303/2015г,Дели | C42: КАША ВЯЗКАЯ МОЛОЧНАЯ ИЗ РИСА с маслом | G42: 200/5 | I42: 9.181 | K42: 11.940 | L42: 50.409 | O42: 346
B43: №378/2015г,Дели | C43: ЧАЙ С МОЛОКОМ | G43: 200 | I43: 0.210 | K43: 0.050 | L43: 15.020 | O43: 61
C44: ХЛЕБЦЫ РИСОВЫЕ | G44: 25 | I44: 1.5 | K44: 0.25 | L44: 17.25 | O44: 77
B45: Итого: | G45: 598 | I45: =I44+I43+I42+I41+I40 -> 17.626 | K45: =K44+K43+K42+K41+K40 -> 18.638 | L45: =L44+L43+L42+L41+L40 -> 94.719 | O45: =O44+O43+O42+O41+O40 -> 616
B46: ОБЕД
B47: № 338/2015 г Дели | C47: ФРУКТ (Груша) | G47: 120 | I47: 0.480 | K47: 0.480 | L47: 11.760 | O47: 53
B48: № 59/2015 г Дели | C48: САЛАТ ИЗ МОРКОВИ С ЯБЛОКАМИ | G48: 100 | I48: 0.990 | K48: 0.140 | L48: 8.780 | O48: 40
B49: №88/2015г,Дели | C49: ЩИ ИЗ СВЕЖЕЙ КАПУСТЫ С КАРТОФЕЛЕМ (без томатной пасты) | G49: 250 | I49: 2.430 | K49: 3.680 | L49: 10.400 | O49: 88
B50: №260/2015г,Дели | C50: ГУЛЯШ (без томатной пасты, пшенич.муки) | G50: 50/50 | I50: 15.194 | K50: 17.678 | L50: 10.845 | O50: 263
B51: №136/2015г,Дели | C51: ОВОЩИ ПРИПУЩЕННЫЕ | G51: 180 | I51: 6.42 | K51: 6.140 | L51: 38.8 | O51: 236
B52: № 631 Сбор. рецеп. 2004 г | C52: КОМПОТ ИЗ ЯБЛОК | G52: 200/15/7 | I52: 0.440 | K52: 0.020 | L52: 29.760 | O52: 121
C53: ХЛЕБЦЫ ГРЕЧНЕВЫЕ | G53: 40 | I53: 1.92 | K53: 1.96 | L53: 8.8 | O53: 59
B54: Итого: | G54: 1012 | I54: =SUM(I47:J53) -> 27.874 | K54: 30,098 | L54: =SUM(L47:N53) -> 119.145 | O54: =SUM(O47:P53) -> 860
C55: ВСЕГО | G55: =G45+G54 -> 1610 | I55: =I54+I45 -> 45.500 | K55: =K54+K45 -> 48.736 | L55: =L54+L45 -> 213.864 | O55: =O54+O45 -> 1476
B56: 4 ДЕНЬ
B57: ЗАВТРАК
B58: №340 сбор.2004/210 Дели 2015 | C58: ОМЛЕТ НАТУРАЛЬНЫЙ | G58: 80 | I58: 7.610 | K58: 8.840 | L58: 5.744 | O58: 133
B59: №173/2015г,Дели | C59: КАША ВЯЗКАЯ МОЛОЧНАЯ ИЗ ПШЁННОЙ КРУПЫ С МАСЛОМ | G59: 250/5 | I59: 9.437 | K59: 11.717 | L59: 44.092 | O59: 320
B60: №376 Дели 2015 | C60: ЧАЙ С САХАРОМ | G60: 200/15/7 | I60: 0.273 | K60: 0.057 | L60: 15.230 | O60: 63
C61: ХЛЕБЦЫ РИСОВЫЕ | G61: 25 | I61: 1.5 | K61: 0.25 | L61: 17.25 | O61: 77
B62: Итого: | G62: 582 | I62: =I61+I60+I59+I58 -> 18.820 | K62: =K61+K60+K59+K58 -> 20.864 | L62: =L61+L60+L59+L58 -> 82.316 | O62: =O61+O60+O59+O58 -> 593
B63: ОБЕД
B64: №45/2015г,Дели | C64: САЛАТ ИЗ БЕЛОКОЧАННОЙ КАПУСТЫ | G64: 100 | I64: 1.551 | K64: 4.085 | L64: 15.175 | O64: 104
B65: №102/2015г,Дели | C65: СУП КАРТОФЕЛЬНЫЙ С БОБОВЫМИ С МЯСНЫМИ ФРИКАДЕЛЬКАМИ | G65: 250 | I65: 3.816 | K65: 3.475 | L65: 26.965 | O65: 156
B66: №289/2015г,Дели | C66: РАГУ ИЗ ПТИЦЫ (без томатной пасты, пшенич.муки) | G66: 180/50г | I66: 20.772 | K66: 19.855 | L66: 49.180 | O66: 459
B67: № 704 2004 г | C67: НАПИТОК ИЗ КУРАГИ | G67: 200/15 | I67: 0.210 | K67: 0.050 | L67: 15.020 | O67: 61
C68: ХЛЕБЦЫ ГРЕЧНЕВЫЕ | G68: 40 | I68: 1.92 | K68: 1.96 | L68: 8.8 | O68: 59
B69: Итого: | G69: 835 | I69: =I68+I67+I66+I65+I64 -> 28.269 | K69: =K68+K67+K66+K65+K64 -> 29.425 | L69: =L67+L68+L66+L65+L64 -> 115.140 | O69: =O68+O67+O66+O65+O64 -> 839
C70: ВСЕГО | G70: 1417 | I70: =I69+I62 -> 47.089 | K70: =K69+K62 -> 50.289 | L70: =L69+L62 -> 197.456 | O70: =O69+O62 -> 1432
B71: 5 ДЕНЬ
B72: ЗАВТРАК
B73: № 338 Дели 2015 г | C73: ФРУКТ (Апельсин) | G73: 90 | I73: 0.480 | K73: 0.480 | L73: 4.760 | O73: 56
B74: №14/2015г Дели | C74: Масло Сливочное (Порциями) | G74: 10 | I74: 7.30 | K74: 7.55 | L74: 0.8 | O74: 97
B75: №173/2015г,Дели | C75: КАША ВЯЗКАЯ МОЛОЧНАЯ ИЗ КУКУРУЗНОЙ КРУПЫ (с маслом) | G75: 250/ 5 | I75: 8.585 | K75: 9.537 | L75: 56.178 | O75: 345
B76: №377/2015г,Дели | C76: ЧАЙ С ЛИМОНОМ | G76: 200 | I76: 0.320 | K76: 0.140 | L76: 20.440 | O76: 84
C77: ХЛЕБЦЫ РИСОВЫЕ | G77: 25 | I77: 1.5 | K77: 0.25 | L77: 17.25 | O77: 77
B78: Итого: | G78: 580 | I78: =I77+I76+I75+I74+I73 -> 18.185 | K78: =K77+K76+K75+K74+K73 -> 17.957 | L78: =L77+L76+L75+L74+L73 -> 99.428 | O78: =O77+O76+O75+O74+O73 -> 659
B79: ОБЕД
B80: № 338/2015 г Дели | C80: ФРУКТ (яблоко зеленое) | G80: 120 | I80: 0.480 | K80: 0.480 | L80: 26.74 | O80: 113
B81: № 62 Дели 2015 г | C81: САЛАТ ИЗ МОРКОВИ | G81: 100 | I81: 1.430 | K81: 3.051 | L81: 9.105 | O81: 68
B82: №88/2015г,Дели | C82: ЩИ ИЗ СВЕЖЕЙ КАПУСТЫ С КАРТОФЕЛЕМ (без томатной пасты) | G82: 250 | I82: 2.430 | K82: 3.680 | L82: 10.400 | O82: 84
B83: № 464 Сбор. рецеп. 2004 г | C83: ТЕФТЕЛИ ИЗ ГОВЯДИНЫ (без пшенич.хлеба) | G83: 100 | I83: 12.270 | K83: 12.280 | L83: 1.760 | O83: 172
B84: Сб.,М:ДеЛи плюс,2015,рец.№199 | C84: ПЮРЕ ИЗ БОБОВЫХ | G84: 180 | I84: 9.114 | K84: 6.260 | L84: 42.956 | O84: 265
B85: № 705 Сбор. рецеп. 2004 г | C85: НАПИТОК ИЗ ШИПОВНИКА | G85: 200 | I85: 0.210 | K85: 0.050 | L85: 15.020 | O85: 61
C86: ХЛЕБЦЫ ГРЕЧНЕВЫЕ | G86: 40 | I86: 1.92 | K86: 1.96 | L86: 8.8 | O86: 59
B87: Итого: | G87: 990 | I87: =I80+I81+I82+I83+I84+I85+I86 -> 27.854 | K87: =K80+K81+K82+K83+K84+K85+K86 -> 27.761 | L87: =L80+L81+L82+L83+L84+L85+L86 -> 114.781 | O87: =O80+O81+O82+O83+O84+O85+O86 -> 822
C88: ВСЕГО | G88: 1370 | I88: =I87+I78 -> 46.039 | K88: =K87+K78 -> 45.718 | L88: =L87+L78 -> 214.209 | O88: =O87+O78 -> 1481
B89: 6 ДЕНЬ
B90: ЗАВТРАК
B91: № 338/2015 г Дели | C91: ФРУКТ (Груша) | G91: 120 | I91: 0.480 | K91: 0.480 | L91: 11.760 | O91: 53
B92: №29/2015г,Дели | C92: Яицо отварное | G92: 1 шт | I92: 6.255 | K92: 5.918 | L92: 0.28 | O92: 79
B93: № 305, Сбор. рец 2004 г | C93: КАША МОЛОЧНАЯ "ЯНТАРНАЯ" с МАСЛОМ | G93: 200/5 | I93: 9.146 | K93: 13.700 | L93: 42.128 | O93: 328
B94: №378/2015г,Дели | C94: ЧАЙ С МОЛОКОМ | G94: 200/15 | I94: 0.210 | K94: 0.050 | L94: 15.020 | O94: 61
C95: ХЛЕБЦЫ РИСОВЫЕ | G95: 25 | I95: 1.5 | K95: 0.25 | L95: 17.25 | O95: 77
B96: Итого: | G96: 613 | I96: =I95+I94+I93+I92+I91 -> 17.591 | K96: =K95+K94+K93+K92+K91 -> 20.398 | L96: =L95+L94+L93+L92+L91 -> 86.438 | O96: =O95+O94+O93+O92+O91 -> 598
B97: ОБЕД
B98: №47/2015г,Дели | C98: САЛАТ ИЗ КВАШЕННОЙ КАПУСТЫ | G98: 100 | I98: 1.551 | K98: 4.080 | L98: 15.175 | O98: 104
B99: №97/2015г,Дели | C99: СУП КАРТОФЕЛЬНЫЙ С ФРИКАДЕЛЬКАМИ МЯСНЫМИ | G99: 250 /10 | I99: 4.900 | K99: 5.000 | L99: 25.045 | O99: 166
B100: № 268/2015г,Дели | C100: КОТЛЕТЫ ИЗ ГОВЯДИНЫ (без пшенич.муки,хлеба,сухарей) | G100: 100г | I100: 16.478 | K100: 14.950 | L100: 7.340 | O100: 230
B101: №139/2015г,Дели | C101: КАПУСТА ТУШЕНАЯ (без томатной пасты, пшенич.муки) | G101: 180 | I101: 4.300 | K101: 4.570 | L101: 28.900 | O101: 172
B102: № 700 Сбор. рецеп. 2004 г | C102: НАПИТОК ИЗ ЗАМОРОЖЕННОЙ КЛЮКВЫ | G102: 200 | I102: 0.125 | K102: 0.050 | L102: 24.877 | O102: 100
C103: ХЛЕБЦЫ ГРЕЧНЕВЫЕ | G103: 40 | I103: 1.92 | K103: 1.96 | L103: 8.8 | O103: 59
B104: Итого: | G104: 850 | I104: =SUM(I98:J103) -> 29.274 | K104: =SUM(K98:K103) -> 30.610 | L104: =SUM(L98:N103) -> 110.137 | O104: =SUM(O98:P103) -> 831
C105: ВСЕГО | G105: 1463 | I105: =I104+I96 -> 46.865 | K105: =K104+K96 -> 51.008 | L105: =L104+L96 -> 196.575 | O105: =O104+O96 -> 1429
B106: 2 неделя
B107: 1 ДЕНЬ
B108: ЗАВТРАК
B109: №340 сбор.2004/210 Дели 2015 | C109: ОМЛЕТ НАТУРАЛЬНЫЙ | G109: 80 | I109: 7.610 | K109: 8.840 | L109: 5.744 | O109: 133
B110: №173/2015г,Дели | C110: КАША ВЯЗКАЯ МОЛОЧНАЯ ИЗ ПШЁННОЙ КРУПЫ С МАСЛОМ | G110: 250/5 | I110: 9.437 | K110: 11.717 | L110: 44.092 | O110: 317
B111: №376 Дели 2015 | C111: ЧАЙ С САХАРОМ | G111: 200/15/7 | I111: 0.273 | K111: 0.057 | L111: 15.230 | O111: 63
C112: ХЛЕБЦЫ РИСОВЫЕ | G112: 25 | I112: 1.5 | K112: 0.25 | L112: 17.25 | O112: 77
B113: Итого: | G113: 582 | I113: =I112+I111+I110+I109 -> 18.820 | K113: =K112+K111+K110+K109 -> 20.864 | L113: =L112+L111+L110+L109 -> 82.316 | O113: =O112+O111+O110+O109 -> 590
B114: ОБЕД
B115: № 338/2015 г Дели | C115: ФРУКТ (Банан) | G115: 120 | I115: 0.48 | K115: 0.48 | L115: 11.76 | O115: 53
B116: №45/2015г,Дели | C116: САЛАТ ИЗ БЕЛОКОЧАННОЙ КАПУСТЫ | G116: 100 | I116: 1.551 | K116: 4.085 | L116: 15.175 | O116: 104
B117: № 111 сб.рецептур 2004 г. | C117: БОРЩ СИБИРСКИЙ (без томатной пасты) | G117: 250 | I117: 3.730 | K117: 2.350 | L117: 31.480 | O117: 162
B118: № 281/2015г,Дели | C118: БИТОЧКИ ПАРОВЫЕ (без хлеба) | G118: 100 | I118: 16.750 | K118: 13.300 | L118: 8.400 | O118: 220
B119: №304/2015г,Дели | C119: РИС ОТВАРНОЙ С МАСЛОМ | G119: 180/5 | I119: 4.640 | K119: 5.270 | L119: 36.060 | O119: 210
B120: № 631 Сбор. рецеп. 2004 г | C120: КОМПОТ ИЗ УРЮКА | G120: 200/15 | I120: 0.210 | K120: 0.050 | L120: 15.020 | O120: 61
C121: ХЛЕБЦЫ ГРЕЧНЕВЫЕ | G121: 40 | I121: 1.92 | K121: 1.96 | L121: 8.8 | O121: 59
B122: Итого: | G122: 1010 | I122: =I121+I120+I119+I118+I117+I116+I115 -> 29.281 | K122: =K121+K120+K119+K118+K117+K116+K115 -> 27.495 | L122: =L121+L120+L119+L118+L117+L116+L115 -> 126.695 | O122: =O121+O120+O119+O118+O117+O116+O115 -> 869
C123: ВСЕГО | G123: 1592 | I123: =I122+I113 -> 48.101 | K123: =K122+K113 -> 48.359 | L123: =L122+L113 -> 209.011 | O123: =O122+O113 -> 1459
B124: 2 ДЕНЬ
B125: ЗАВТРАК
B126: № 338 Дели 2015 г | C126: ФРУКТ (Мандарин) | G126: 90 | I126: 0.480 | K126: 0.480 | L126: 4.760 | O126: 56
B127: №14/2015г Дели | C127: Масло Сливочное (Порциями) | G127: 10 | I127: 7.30 | K127: 7.55 | L127: 0.8 | O127: 97
B128: №173/2015г,Дели | C128: КАША ВЯЗКАЯ МОЛОЧНАЯ ИЗ КУКУРУЗНОЙ КРУПЫ (с маслом) | G128: 250/ 5 | I128: 8.585 | K128: 9.537 | L128: 56.178 | O128: 345
B129: №377/2015г,Дели | C129: ЧАЙ С ЛИМОНОМ | G129: 200 | I129: 0.320 | K129: 0.140 | L129: 20.440 | O129: 84
C130: ХЛЕБЦЫ РИСОВЫЕ | G130: 25 | I130: 1.5 | K130: 0.25 | L130: 17.25 | O130: 77
B131: Итого: | G131: 580 | I131: =I130+I129+I128+I127+I126 -> 18.185 | K131: =K130+K129+K128+K127+K126 -> 17.957 | L131: =L130+L129+L128+L127+L126 -> 99.428 | O131: =O130+O129+O128+O127+O126 -> 659
B132: ОБЕД
B133: №52/2015г,Дели | C133: САЛАТ ИЗ СВЕКЛЫ ОТВАРНОЙ (с маслом) | G133: 100 | I133: 0.758 | K133: 1.088 | L133: 8.360 | O133: 46
B134: №99/2015г,Дели | C134: СУП ОВОЩНОЙ С МЯСНЫМИ ФРИКАДЕЛЬКАМИ | G134: 250 /10 | I134: 3.275 | K134: 4.332 | L134: 25.045 | O134: 152
B135: №288/2015г,Дели | C135: ПТИЦА ОТВАРНАЯ | G135: 100 | I135: 15.990 | K135: 16.170 | L135: 7.320 | O135: 238
B136: № 541/2004 год | C136: РАГУ ОВОЩНОЕ | G136: 180 | I136: 4.360 | K136: 4.850 | L136: 35.300 | O136: 203
B137: № 705 Сбор. рецеп. 2004 г | C137: НАПИТОК ИЗ ШИПОВНИКА | G137: 200 | I137: 0.210 | K137: 0.050 | L137: 15.020 | O137: 61
C138: ХЛЕБЦЫ ГРЕЧНЕВЫЕ | G138: 40 | I138: 1.920 | K138: 1.96 | L138: 8.8 | O138: 59
B139: Итого: | G139: 880 | I139: =SUM(I133:J138) -> 26.513 | K139: =SUM(K133:K138) -> 28.450 | L139: 109.85 | O139: 802
C140: ВСЕГО | G140: 1460 | I140: =I139+I131 -> 44.698 | K140: =K139+K131 -> 46.407 | L140: =L139+L131 -> 209.278 | O140: =O139+O131 -> 1461
B141: 3 ДЕНЬ
B142: ЗАВТРАК
B143: № 338/2015 г Дели | C143: ФРУКТ (Груша) | G143: 120 | I143: 0.480 | K143: 0.480 | L143: 11.760 | O143: 53
B144: №29/2015г,Дели | C144: ЯЙЦО ОТВАРНОЕ | G144: 1 шт | I144: 6.255 | K144: 5.918 | L144: 0.28 | O144: 79
B145: №303/2015г,Дели | C145: КАША ВЯЗКАЯ МОЛОЧНАЯ ИЗ РИСА с маслом | G145: 200/5 | I145: 9.181 | K145: 11.940 | L145: 50.409 | O145: 346
B146: №378/2015г,Дели | C146: ЧАЙ С МОЛОКОМ | G146: 200 | I146: 0.210 | K146: 0.050 | L146: 15.020 | O146: 61
C147: ХЛЕБЦЫ РИСОВЫЕ | G147: 25 | I147: 1.5 | K147: 0.25 | L147: 17.25 | O147: 77
B148: Итого: | G148: 598 | I148: =I147+I146+I145+I144+I143 -> 17.626 | K148: =K147+K146+K145+K144+K143 -> 18.638 | L148: =L147+L146+L145+L144+L143 -> 94.719 | O148: =O147+O146+O145+O144+O143 -> 616
B149: ОБЕД
B150: № 338 Дели 2015 г | C150: ФРУКТ (Яблоко красное) | G150: 120 | I150: 0.480 | K150: 0.480 | L150: 11.760 | O150: 56
B151: №47/2015г,Дели | C151: САЛАТ ИЗ КВАШЕННОЙ КАПУСТЫ | G151: 100 | I151: 1.551 | K151: 4.080 | L151: 15.175 | O151: 104
B152: №98/2015г,Дели | C152: СУП КРЕСТЬЯНСКИЙ С КРУПОЙ | G152: 250г | I152: 2.356 | K152: 1.400 | L152: 12.900 | O152: 74
B153: № 371 Сбор.2004г | C153: ГОРБУША ПРИПУЩЕННАЯ | G153: 100 | I153: 17.070 | K153: 18.650 | L153: 2.020 | O153: 244
B154: №312/2015г,Дели | C154: ПЮРЕ КАРТОФЕЛЬНОЕ С МАСЛОМ | G154: 180/5 | I154: 3.864 | K154: 4.460 | L154: 50.480 | O154: 258
B155: №348/2015г,Дели | C155: КОМПОТ ИЗ СУХОФРУКТОВ | G155: 200 | I155: 0.210 | K155: 0.050 | L155: 15.020 | O155: 61
C156: ХЛЕБЦЫ ГРЕЧНЕВЫЕ | G156: 40 | I156: 1.92 | K156: 1.96 | L156: 8.8 | O156: 59.2
B157: Итого: | G157: 995 | I157: =I156+I155+I154+I153+I152+I151+I150 -> 27.451 | K157: =K150+K151+K152+K153+K154+K155+K156 -> 31.080 | L157: =SUM(L150:N156) -> 116.155 | O157: =SUM(O150:P156) -> 856
C158: ВСЕГО | G158: 1593 | I158: =I157+I148 -> 45.077 | K158: =K157+K148 -> 49.718 | L158: =L157+L148 -> 210.874 | O158: =O157+O148 -> 1472
B159: 4 ДЕНЬ
B160: ЗАВТРАК
B161: №340 сбор.2004/210 Дели 2015 | C161: ОМЛЕТ НАТУРАЛЬНЫЙ | G161: 80 | I161: 7.610 | K161: 8.840 | L161: 5.744 | O161: 133
B162: №173/2015г,Дели | C162: КАША ВЯЗКАЯ МОЛОЧНАЯ ИЗ ПШЁННОЙ КРУПЫ С МАСЛОМ | G162: 250/5 | I162: 9.437 | K162: 11.717 | L162: 44.092 | O162: 320
B163: №376/2015г,Дели | C163: ЧАЙ С САХАРОМ | G163: 200/15/7 | I163: 0.273 | K163: 0.057 | L163: 15.230 | O163: 63
C164: ХЛЕБЦЫ РИСОВЫЕ | G164: 25 | I164: 1.5 | K164: 0.25 | L164: 17.25 | O164: 77
B165: Итого: | G165: 582 | I165: =I164+I163+I162+I161 -> 18.820 | K165: =K164+K163+K162+K161 -> 20.864 | L165: =L164+L163+L162+L161 -> 82.316 | O165: =O164+O163+O162+O161 -> 593
B166: ОБЕД
B167: № 338 Дели 2015 г | C167: ФРУКТ(Мандарин) | G167: 120 | I167: 0.480 | K167: 0.480 | L167: 11.760 | O167: 53
B168: №45/2015г,Дели | C168: САЛАТ ИЗ БЕЛОКОЧАННОЙ КАПУСТЫ | G168: 100 | I168: 1.551 | K168: 4.085 | L168: 15.175 | O168: 104
B169: №102/2015г,Дели | C169: СУП КАРТОФЕЛЬНЫЙ С БОБОВЫМИ С МЯСНЫМИ ФРИКАДЕЛЬКАМИ | G169: 250 | I169: 3.816 | K169: 3.475 | L169: 26.965 | O169: 156
B170: №291/2015г,Дели | C170: ПЛОВ ИЗ ПТИЦЫ (без томатной пасты) | G170: 50/180 | I170: 20.200 | K170: 22.195 | L170: 39.166 | O170: 437
B171: № 704 2004 г | C171: НАПИТОК ИЗ КУРАГИ | G171: 200/15 | I171: 0.210 | K171: 0.050 | L171: 15.020 | O171: 61
C172: ХЛЕБЦЫ ГРЕЧНЕВЫЕ | G172: 40 | I172: 1.92 | K172: 1.96 | L172: 8.8 | O172: 59.2
B173: Итого: | G173: 955 | I173: =I172+I171+I170+I169+I168+I167 -> 28.177 | K173: =K172+K171+K170+K169+K168+K167 -> 32.245 | L173: =L172+L171+L170+L169+L168+L167 -> 116.886 | O173: =O172+O171+O170+O169+O168+O167 -> 870
C174: ВСЕГО | G174: 1537 | I174: =I173+I165 -> 46.997 | K174: =K173+K165 -> 53.109 | L174: =L173+L165 -> 199.202 | O174: =O173+O165 -> 1463
B175: 5 ДЕНЬ
B176: ЗАВТРАК
B177: № 338 Дели 2015 г | C177: ФРУКТ (Мандарин) | G177: 90 | I177: 0.480 | K177: 0.480 | L177: 4.760 | O177: 56
B178: №14/2015г Дели | C178: Масло Сливочное (Порциями) | G178: 10 | I178: 7.30 | K178: 7.55 | L178: 0.8 | O178: 97
B179: №173/2015г,Дели | C179: КАША ВЯЗКАЯ МОЛОЧНАЯ ИЗ КУКУРУЗНОЙ КРУПЫ (с маслом) | G179: 250/ 5 | I179: 8.585 | K179: 9.537 | L179: 56.178 | O179: 345
B180: №377/2015г,Дели | C180: ЧАЙ С ЛИМОНОМ | G180: 200 | I180: 0.320 | K180: 0.140 | L180: 20.440 | O180: 84
C181: ХЛЕБЦЫ РИСОВЫЕ | G181: 25 | I181: 1.5 | K181: 0.25 | L181: 17.25 | O181: 77
B182: Итого: | G182: 580 | I182: =I181+I180+I179+I178+I177 -> 18.185 | K182: =K181+K180+K179+K178+K177 -> 17.957 | L182: =SUM(L177:N181) -> 99.428 | O182: =SUM(O177:R181) -> 659
B183: ОБЕД
B184: № 338 Дели 2015 г | C184: ФРУКТ (Банан) | G184: 120 | I184: 0.480 | K184: 0.480 | L184: 11.760 | O184: 56
B185: № 62 Дели 2015 г | C185: САЛАТ ИЗ МОРКОВИ | G185: 100 | I185: 1.430 | K185: 3.051 | L185: 9.105 | O185: 68
B186: №88/2015г,Дели | C186: ЩИ ИЗ СВЕЖЕЙ КАПУСТЫ С КАРТОФЕЛЕМ (без томатной пасты) | G186: 250 | I186: 2.430 | K186: 3.680 | L186: 10.400 | O186: 88
B187: №288/2015г,Дели | C187: ПТИЦА ОТВАРНАЯ | G187: 100 | I187: 15.990 | K187: 16.170 | L187: 7.320 | O187: 238
B188: №302/2015г,Дели | C188: КАША ГРЕЧНЕВАЯ РАССЫПЧАТАЯ | G188: 180 | I188: 7.940 | K188: 6.470 | L188: 53.050 | O188: 302
B189: № 631 Сбор. рецеп. 2004 г | C189: КОМПОТ ИЗ ЯБЛОК | G189: 200 | I189: 0.440 | K189: 0.020 | L189: 31.760 | O189: 129
C190: ХЛЕБЦЫ РИСОВЫЕ | G190: 25 | I190: 1.5 | K190: 0.25 | L190: 17.25 | O190: 77
B191: Итого: | G191: =SUM(G184:H190) -> 975 | I191: =SUM(I184:J190) -> 30.210 | K191: =SUM(K184:K190) -> 30.121 | L191: =SUM(L184:N190) -> 140.645 | O191: =SUM(O184:P190) -> 958
C192: ВСЕГО | G192: 1555 | I192: =I191+I182 -> 48.395 | K192: =K191+K182 -> 48.078 | L192: =L191+L182 -> 240.073 | O192: =O191+O182 -> 1617
B193: 6 ДЕНЬ
B194: ЗАВТРАК
B195: № 338/2015 г Дели | C195: ФРУКТ (Апельсин) | G195: 120 | I195: 0.480 | K195: 0.480 | L195: 11.760 | O195: 53
B196: №29/2015г,Дели | C196: Яицо отварное | G196: 1 шт | I196: 6.255 | K196: 5.918 | L196: 0.28 | O196: 79
B197: №303/2015г,Дели | C197: КАША ВЯЗКАЯ МОЛОЧНАЯ ИЗ РИСА с маслом | G197: 200/5 | I197: 9.181 | K197: 11.940 | L197: 50.409 | O197: 346
B198: №378/2015г,Дели | C198: ЧАЙ С МОЛОКОМ | G198: 200 | I198: 0.210 | K198: 0.050 | L198: 15.020 | O198: 61
C199: ХЛЕБЦЫ РИСОВЫЕ | G199: 25 | I199: 1.5 | K199: 0.25 | L199: 17.25 | O199: 77
B200: Итого: | G200: 598 | I200: =I199+I198+I197+I196+I195 -> 17.626 | K200: =K199+K198+K197+K196+K195 -> 18.638 | L200: =L199+L198+L197+L196+L195 -> 94.719 | O200: =O199+O198+O197+O196+O195 -> 616
B201: ОБЕД
... 8 more rows
